fUSD/lending_fUSD_20241026
["ID","MTS","AMOUNT","RATE_DAILY","PERIOD"]
[340859389,1729951849126,-500.0,0.00059178,120]
[340859390,1729951849136,-500.0,0.00059178,120]
[340859391,1729951849146,-500.0,0.00059178,120]
[340859392,1729951849156,-500.0,0.00059178,120]
[340859393,1729951849165,-509.90518053,0.00059178,120]
[340859394,1729951849175,-500.0,0.00059178,120]
[340859395,1729951849185,-500.0,0.00059178,120]
[340859396,1729951849194,-500.0,0.00059178,120]
[340859397,1729951849203,-131.84240333,0.00059178,120]
[340859408,1729952703882,163.43,0.00015342,2]
[340859409,1729952708628,1999316.41,0.00015,2]
[340859410,1729952708663,3168966.56177997,0.00015,2]
[340859412,1729952710787,15832.68526241,0.000154,2]
[340859413,1729952736978,2250.0,9e-05,2]
[340859414,1729952755049,5980.84506688,0.000159,2]
[340859415,1729952755600,1200.0,6.94e-05,2]
[340859416,1729952833893,905.28599153,0.00043404,30]
[340859417,1729952876332,10738.72321111,0.00012579,2]
[340859418,1729952883233,663622.56309121,0.00015,2]
[340859419,1729952886516,38405.63072517,0.0002,2]
[340859420,1729952892192,326.1021691,0.0002,2]
[340859421,1729952905929,15846.99062607,0.0002,2]
[340859441,1729953032536,-1112.04318586,0.00025,2]
[340859442,1729953032545,-151.0,0.00025,2]
[340859443,1729953032554,-538.63859077,0.000379,2]
[340859444,1729953032563,-51529.34950195,0.0004,2]
[340859445,1729953032572,-8886.6403,0.0004018,2]
[340859446,1729953032581,-171392.44027028,0.0004028,2]
[340859447,1729953032590,-167.47842702,0.00040738,59]
[340859448,1729953032599,-4427.0028,0.00040738,2]
[340859449,1729953032608,-5460.2746,0.00040738,2]
[340859458,1729953032734,-2149.1037,0.00040738,2]
[340859459,1729953032743,-1000.0,0.00040738,2]
[340859461,1729953032753,-7308.1434,0.00040738,2]
[340859463,1729953032762,-2500.0,0.00040738,2]
[340859464,1729953032772,-276.349,0.00040738,59]
[340859466,1729953032781,-168.69631345,0.00040738,28]
[340859468,1729953032790,-786.2575,0.00040827,2]
[340859469,1729953032800,-26179.2742,0.00040827,2]
[340859471,1729953032809,-500.0,0.00040837,31]
[340859473,1729953032818,-481.67204763,0.00040837,31]
[340859474,1729953032826,-500.0,0.00040837,31]
[340859476,1729953032835,-500.0,0.00040837,31]
[340859478,1729953032844,-500.0,0.00040837,31]
[340859480,1729953032853,-500.0,0.00040837,31]
[340859481,1729953032863,-349.5249246,0.00040837,31]
[340859483,1729953032872,-504.57157068,0.00040837,31]
[340859485,1729953032881,-6711.9823,0.00040838,2]
[340859486,1729953032891,-100000.0,0.00040838,2]
[340859488,1729953032901,-15187.74991442,0.00040838,2]
[340859490,1729953032913,-4383.82569339,0.00040838,2]
[340859492,1729953032925,-337.47714,0.00040838,2]
[340859521,1729953038399,-51950.78610868,0.00040838,2]
[340859522,1729953038416,-15651.23814351,0.00040838,2]
[340859523,1729953038426,-1000.0,0.00041096,120]
[340859524,1729953038435,-577.45,0.000415,2]
[340859525,1729953038444,-577.45,0.00041511,2]
[340859526,1729953038456,-577.45,0.00041522,2]
[340859527,1729953038466,-577.45,0.00041533,2]
[340859528,1729953038479,-577.45,0.00041544,2]
[340859529,1729953038488,-577.45,0.00041555,2]
[340859530,1729953038497,-577.45,0.00041566,2]
[340859531,1729953038507,-577.45,0.00041577,2]
[340859532,1729953038517,-577.45,0.00041588,2]
[340859533,1729953038526,-577.45,0.00041599,2]
[340859534,1729953038535,-577.45,0.0004161,2]
[340859535,1729953038545,-577.45,0.0004162,2]
[340859536,1729953038554,-577.45,0.00041631,2]
[340859537,1729953038565,-577.45,0.00041642,2]
[340859538,1729953038574,-1000.0,0.00041644,120]
[340859539,1729953038583,-577.45,0.00041653,2]
[340859540,1729953038592,-577.45,0.00041664,2]
[340859541,1729953038602,-577.45,0.00041675,2]
[340859542,1729953038611,-577.45,0.00041686,2]
[340859543,1729953038620,-577.45,0.00041697,2]
[340859544,1729953038630,-577.45,0.00041708,2]
[340859545,1729953038640,-189.82,0.00041836,2]
[340859546,1729953038649,-1050.0,0.00042,2]
[340859547,1729953038659,-3913.29900374,0.00042,30]
[340859548,1729953038668,-6087.17,0.00042139,2]
[340859549,1729953038678,-1000.0,0.00042192,120]
[340859550,1729953038688,-170.55843451,0.00042391,4]
[340859551,1729953038697,-1586.34371853,0.0004274,120]
[340859552,1729953038710,-407.21826142,0.00043,2]
[340859553,1729953038720,-5252.12487215,0.0004339,9]
[340859554,1729953038729,-241.69177691,0.00043393,2]
[340859555,1729953038739,-150.0,0.000434,2]
[340859556,1729953038748,-73651.53578573,0.00043403,2]
[340859557,1729953038768,-34530.82546536,0.00043403,2]
[340859558,1729953038778,-5374.99585608,0.00043403,2]
[340859559,1729953038787,-1252.0,0.00044369,2]
[340859560,1729953038797,-200236.00697776,0.000448,120]
[340859561,1729953038806,-205.86521344,0.0004489,120]
[340859562,1729953038815,-5252.12487215,0.0004499,9]
[340859563,1729953038824,-376.95229711,0.00044999,31]
[340859564,1729953038834,-293.96520108,0.00045,120]
[340859565,1729953038844,-10567.62777119,0.00045,120]
[340859566,1729953038854,-619.64003295,0.00045,120]
[340859567,1729953038864,-688.54,0.00045764,2]
[340859568,1729953038873,-189.82,0.0004602,2]
[340859569,1729953038883,-319.47138642,0.000465,120]
[340859570,1729953038893,-159.11018283,0.00047,60]
[340859571,1729953038902,-203.48510959,0.00047,120]
[340859572,1729953038912,-1252.0,0.00047369,2]
[340859573,1729953038921,-5252.12487215,0.00047449,10]
[340859575,1729953038931,-181.68807877,0.0004748,115]
[340859576,1729953038941,-10504.2497443,0.0004749,10]
[340859578,1729953038950,-21922.32860029,0.000475,2]
[340859579,1729953038962,-5174.98436827,0.000476,2]
[340859581,1729953038972,-150.62,0.0004792,2]
[340859582,1729953038982,-688.54,0.00048028,2]
[340859583,1729953038991,-175.2,0.00048052,2]
[340859585,1729953039001,-5252.12487215,0.00048879,10]
[340859586,1729953039011,-174.2125,0.00048888,30]
[340859587,1729953039020,-10710.63668467,0.00048889,120]
[340859588,1729953039030,-10504.2497443,0.0004899,10]
[340859589,1729953039039,-6504.07028841,0.0004899,10]
[340859591,1729953039049,-20815.87749817,0.00049,2]
[340859592,1729953039058,-188.02,0.00049248,2]
[340859593,1729953039068,-250.0,0.00049275,120]
[340859595,1729953039077,-156.32397338,0.000495,120]
[340859596,1729953039087,-6504.07028841,0.00049679,10]
[340859598,1729953039096,-5252.12487215,0.00049689,10]
[340859599,1729953039106,-234.0,0.00049762,10]
[340859601,1729953039115,-5252.12487215,0.0004999,10]
[340859604,1729953039125,-13008.1405768,0.0004999,10]
[340859605,1729953039134,-3139.49,0.0005,120]
[340859607,1729953039143,-7499.99,0.0005,120]
[340859608,1729953039153,-7499.99,0.0005,120]
[340859609,1729953039163,-189.82,0.00050203,2]
[340859611,1729953039173,-152.0,0.00050238,3]
[340859612,1729953039182,-688.54,0.00050292,2]
[340859614,1729953039191,-6504.07028841,0.00050317,10]
[340859615,1729953039201,-10504.2497443,0.00050327,11]
[340859617,1729953039212,-6504.07028841,0.00050327,10]
[340859618,1729953039222,-23900.0,0.00050337,2]
[340859619,1729953039235,-6504.07028841,0.00050731,10]
[340859621,1729953039248,-6223.0,0.00050741,3]
[340859622,1729953039262,-168.69631345,0.00050819,28]
[340859623,1729953039273,-319.54549158,0.00051198,2]
[340859625,1729953039283,-150.0,0.00051391,7]
[340859626,1729953039292,-5252.12487215,0.00051929,11]
[340859628,1729953039302,-6504.07028841,0.00051929,10]
[340859629,1729953039312,-1000.0,0.0005235,120]
[340859631,1729953039321,-688.54,0.00052556,2]
[340859632,1729953039330,-180.4,0.00052626,2]
[340859633,1729953039339,-414.46,0.000532,7]
[340859634,1729953039349,-4384.0,0.000533,120]
[340859635,1729953039358,-152.0,0.0005424,4]
[340859636,1729953039370,-214.53702839,0.00054594,26]
[340859637,1729953039380,-26016.2811536,0.00054674,11]
[340859638,1729953039390,-47269.1238494,0.00054684,12]
[340859639,1729953039399,-45528.4920189,0.00054684,11]
[340859640,1729953039409,-92451.8785,0.00054694,2]
[340859641,1729953039419,-1318.0814,0.00054694,2]
[340859642,1729953039429,-150.0,0.000547,99]
[340859643,1729953039438,-6504.07028841,0.00054774,11]
[340859644,1729953039448,-21008.4994886,0.00054784,12]
[340859645,1729953039462,-19512.2108652,0.00054784,11]
[340859646,1729953039472,-429.18802522,0.00054794,120]
[340859647,1729953039482,-469.19903474,0.00054794,120]
[340859648,1729953039492,-500.0,0.00054794,120]
[340859649,1729953039501,-270.59400351,0.00054794,120]
[340859650,1729953039511,-500.0,0.00054794,120]
[340859651,1729953039520,-500.0,0.00054794,120]
[340859652,1729953039529,-531.71145138,0.00054794,120]
[340859653,1729953039539,-500.0,0.00054794,120]
[340859654,1729953039548,-157.01270969,0.00054794,120]
[340859655,1729953039558,-500.0,0.00054794,120]
[340859656,1729953039568,-500.0,0.00054794,120]
[340859657,1729953039577,-500.0,0.00054794,120]
[340859658,1729953039587,-360.82764638,0.00054794,120]
[340859659,1729953039596,-500.0,0.00054794,120]
[340859660,1729953039606,-500.0,0.00054794,120]
[340859661,1729953039616,-500.0,0.00054794,120]
[340859662,1729953039626,-220.08556738,0.00054794,120]
[340859663,1729953039636,-500.0,0.00054794,120]
[340859664,1729953039646,-500.0,0.00054794,120]
[340859665,1729953039655,-500.0,0.00054794,120]
[340859666,1729953039664,-500.0,0.00054794,120]
[340859667,1729953039674,-500.0,0.00054794,120]
[340859668,1729953039683,-500.0,0.00054794,120]
[340859669,1729953039692,-516.96,0.00054794,120]
[340859670,1729953039702,-189.77396383,0.00054794,120]
[340859671,1729953039716,-500.0,0.00054794,120]
[340859672,1729953039725,-500.0,0.00054794,120]
[340859673,1729953039734,-500.0,0.00054794,120]
[340859674,1729953039743,-841.6,0.00054794,120]
[340859675,1729953039753,-1382.79,0.00054794,120]
[340859676,1729953039763,-500.0,0.00054794,120]
[340859677,1729953039772,-500.0,0.00054794,120]
[340859678,1729953039781,-500.0,0.00054794,120]
[340859679,1729953039791,-794.58,0.00054794,120]
[340859680,1729953039800,-165.60871502,0.00054794,120]
[340859681,1729953039810,-500.0,0.00054794,21]
[340859682,1729953039819,-543.0,0.00054794,120]
[340859683,1729953039829,-500.0,0.00054794,120]
[340859684,1729953039838,-500.0,0.00054794,120]
[340859685,1729953039847,-1101.66,0.00054794,120]
[340859686,1729953039857,-500.0,0.00054794,120]
[340859687,1729953039867,-500.0,0.00054794,7]
[340859688,1729953039876,-799.22,0.00054794,120]
[340859689,1729953039885,-2462.02,0.00054794,120]
[340859690,1729953039894,-1479.17,0.00054794,120]
[340859691,1729953039904,-500.0,0.00054794,120]
[340859692,1729953039913,-500.0,0.00054794,3]
[340859693,1729953039922,-500.0,0.00054794,120]
[340859694,1729953039932,-500.0,0.00054794,120]
[340859695,1729953039942,-500.0,0.00054794,120]
[340859696,1729953039951,-500.0,0.00054794,120]
[340859697,1729953039963,-500.0,0.00054794,120]
[340859698,1729953039972,-500.0,0.00054794,120]
[340859699,1729953039981,-500.0,0.00054794,120]
[340859700,1729953039991,-500.0,0.00054794,120]
[340859701,1729953040000,-500.0,0.00054794,120]
[340859702,1729953040010,-500.0,0.00054794,120]
[340859703,1729953040019,-500.0,0.00054794,120]
[340859704,1729953040029,-500.0,0.00054794,120]
[340859705,1729953040038,-500.0,0.00054794,120]
[340859706,1729953040048,-500.0,0.00054794,120]
[340859707,1729953040058,-798.12,0.00054794,120]
[340859708,1729953040069,-500.0,0.00054794,120]
[340859709,1729953040078,-500.0,0.00054794,120]
[340859710,1729953040088,-500.0,0.00054794,120]
[340859711,1729953040097,-581.0,0.00054795,120]
[340859712,1729953040107,-11528.0,0.000548,120]
[340859713,1729953040116,-688.54,0.00054819,2]
[340859714,1729953040126,-6504.07028841,0.00055322,11]
[340859715,1729953040135,-15756.3746164,0.00055332,12]
[340859716,1729953040145,-19512.2108652,0.00055332,11]
[340859717,1729953040155,-500.0,0.00055342,120]
[340859718,1729953040165,-500.0,0.00055342,120]
[340859719,1729953040174,-500.0,0.00055342,120]
[340859720,1729953040188,-449.22678478,0.00055342,120]
[340859721,1729953040202,-500.0,0.00055342,120]
[340859722,1729953040216,-500.0,0.00055342,120]
[340859723,1729953040226,-500.0,0.00055342,120]
[340859724,1729953040236,-500.0,0.00055342,120]
[340859726,1729953040246,-500.0,0.00055342,120]
[340859727,1729953040256,-500.0,0.00055342,120]
[340859728,1729953040266,-500.0,0.00055342,120]
[340859730,1729953040275,-500.0,0.00055342,120]
[340859732,1729953040285,-500.0,0.00055342,120]
[340859734,1729953040295,-500.0,0.00055342,120]
[340859736,1729953040304,-500.0,0.00055342,120]
[340859738,1729953040313,-500.0,0.00055342,120]
[340859740,1729953040326,-516.96,0.00055342,120]
[340859742,1729953040336,-500.0,0.00055342,120]
[340859743,1729953040345,-500.0,0.00055342,120]
[340859746,1729953040355,-310.33952725,0.00055342,120]
[340859747,1729953040363,-841.6,0.00055342,120]
[340859750,1729953040374,-1382.79,0.00055342,120]
[340859752,1729953040383,-500.0,0.00055342,120]
[340859754,1729953040393,-544.82333326,0.00055342,120]
[340859756,1729953040402,-389.63469709,0.00055342,120]
[340859758,1729953040412,-794.58,0.00055342,120]
[340859760,1729953040421,-500.0,0.00055342,21]
[340859762,1729953040431,-543.0,0.00055342,120]
[340859764,1729953040441,-500.0,0.00055342,120]
[340859766,1729953040451,-500.0,0.00055342,120]
[340859768,1729953040463,-1101.66,0.00055342,120]
[340859770,1729953040478,-500.0,0.00055342,120]
[340859772,1729953040487,-500.0,0.00055342,7]
[340859774,1729953040497,-799.22,0.00055342,120]
[340859776,1729953040506,-2462.02,0.00055342,120]
[340859778,1729953040517,-1479.17,0.00055342,120]
[340859780,1729953040526,-500.0,0.00055342,120]
[340859782,1729953040535,-500.0,0.00055342,3]
[340859784,1729953040544,-500.0,0.00055342,120]
[340859786,1729953040554,-500.0,0.00055342,120]
[340859788,1729953040564,-500.0,0.00055342,120]
[340859790,1729953040573,-500.0,0.00055342,120]
[340859792,1729953040583,-500.0,0.00055342,120]
[340859794,1729953040592,-500.0,0.00055342,120]
[340859796,1729953040601,-500.0,0.00055342,120]
[340859798,1729953040610,-500.0,0.00055342,120]
[340859800,1729953040619,-500.0,0.00055342,120]
[340859802,1729953040629,-500.0,0.00055342,120]
[340859804,1729953040639,-500.0,0.00055342,120]
[340859806,1729953040648,-500.0,0.00055342,120]
[340859807,1729953040657,-500.0,0.00055342,120]
[340859808,1729953040667,-798.12,0.00055342,120]
[340859810,1729953040676,-500.0,0.00055342,120]
[340859812,1729953040685,-500.0,0.00055342,120]
[340859814,1729953040695,-500.0,0.0005577,7]
[340859816,1729953040706,-6504.07028841,0.0005587,11]
[340859818,1729953040715,-10504.2497443,0.0005588,12]
[340859820,1729953040725,-13008.1405768,0.0005588,11]
[340859832,1729953040832,-577.17737864,0.0005589,120]
[340859834,1729953040841,-494.58097773,0.0005589,120]
[340859836,1729953040851,-500.0,0.0005589,120]
[340859838,1729953040860,-500.0,0.0005589,120]
[340859840,1729953040869,-500.0,0.0005589,120]
[340859842,1729953040878,-500.0,0.0005589,120]
[340859845,1729953040889,-186.88872955,0.0005589,120]
[340859846,1729953040898,-500.0,0.0005589,120]
[340859848,1729953040908,-185.81961494,0.0005589,120]
[340859850,1729953040917,-500.0,0.0005589,120]
[340859852,1729953040926,-500.0,0.0005589,120]
[340859854,1729953040935,-516.96,0.0005589,120]
[340859857,1729953040945,-500.0,0.0005589,120]
[340859859,1729953040954,-432.01299818,0.0005589,120]
[340859860,1729953040965,-841.6,0.0005589,120]
[340859861,1729953040974,-1382.79,0.0005589,120]
[340859862,1729953040984,-462.36894689,0.0005589,120]
[340859863,1729953040993,-794.58,0.0005589,120]
[340859864,1729953041003,-500.0,0.0005589,21]
[340859865,1729953041013,-543.0,0.0005589,120]
[340859866,1729953041022,-500.0,0.0005589,120]
[340859867,1729953041032,-500.0,0.0005589,120]
[340859868,1729953041041,-1101.66,0.0005589,120]
[340859869,1729953041051,-500.0,0.0005589,120]
[340859870,1729953041060,-500.0,0.0005589,7]
[340859871,1729953041069,-799.22,0.0005589,120]
[340859872,1729953041079,-2462.02,0.0005589,120]
[340859873,1729953041088,-1479.17,0.0005589,120]
[340859874,1729953041098,-500.0,0.0005589,120]
[340859875,1729953041108,-500.0,0.0005589,3]
[340859876,1729953041117,-500.0,0.0005589,120]
[340859877,1729953041126,-500.0,0.0005589,120]
[340859878,1729953041136,-500.0,0.0005589,120]
[340859879,1729953041146,-500.0,0.0005589,120]
[340859880,1729953041155,-500.0,0.0005589,120]
[340859881,1729953041166,-500.0,0.0005589,120]
[340859882,1729953041175,-500.0,0.0005589,120]
[340859883,1729953041186,-294.42986707,0.0005589,120]
[340859884,1729953041195,-500.0,0.0005589,120]
[340859885,1729953041205,-500.0,0.0005589,120]
[340859886,1729953041215,-500.0,0.0005589,120]
[340859887,1729953041224,-347.82049384,0.0005589,120]
[340859888,1729953041233,-500.0,0.0005589,120]
[340859889,1729953041243,-798.12,0.0005589,120]
[340859890,1729953041253,-500.0,0.0005589,120]
[340859891,1729953041262,-500.0,0.0005589,120]
[340859892,1729953041271,-163.43,0.0005589,2]
[340859893,1729953041280,-5252.12487215,0.0005619,12]
[340859894,1729953041290,-6504.07028841,0.00056396,11]
[340859895,1729953041299,-3510.7,0.00056406,2]
[340859896,1729953041308,-767.56533419,0.00056418,11]
[340859897,1729953041340,-286.87005012,0.00050369,120]
[340859898,1729953041351,-965.12994988,0.00050369,120]
[340859899,1729953041360,-266.99611811,0.00053369,120]
[340859900,1729953041376,-985.00388189,0.00053369,120]
[340859901,1729953041385,-567.27661011,0.00054794,120]
[340859902,1729953041396,-280.934,0.00056369,120]
[340859903,1729953041406,-5736.50495422,0.00056418,11]
[340859904,1729953041415,-10504.2497443,0.00056428,13]
[340859905,1729953041425,-6504.07028841,0.00056428,11]
[340859906,1729953041434,-500.0,0.00056438,120]
[340859907,1729953041443,-500.0,0.00056438,120]
[340859908,1729953041452,-500.0,0.00056438,120]
[340859909,1729953041463,-500.0,0.00056438,120]
[340859910,1729953041473,-516.96,0.00056438,120]
[340859911,1729953041483,-500.0,0.00056438,120]
[340859912,1729953041492,-841.6,0.00056438,120]
[340859913,1729953041501,-1382.79,0.00056438,120]
[340859914,1729953041510,-794.58,0.00056438,120]
[340859915,1729953041521,-500.0,0.00056438,21]
[340859916,1729953041530,-543.0,0.00056438,120]
[340859917,1729953041539,-1101.66,0.00056438,120]
[340859918,1729953041548,-500.0,0.00056438,120]
[340859919,1729953041557,-799.22,0.00056438,120]
[340859920,1729953041567,-2462.02,0.00056438,120]
[340859921,1729953041576,-1479.17,0.00056438,120]
[340859922,1729953041585,-500.0,0.00056438,120]
[340859923,1729953041593,-500.0,0.00056438,3]
[340859924,1729953041603,-394.0034,0.00056438,120]
[340859925,1729953041612,-500.0,0.00056438,120]
[340859926,1729953041621,-500.0,0.00056438,120]
[340859927,1729953041630,-500.0,0.00056438,120]
[340859928,1729953041640,-500.0,0.00056438,120]
[340859929,1729953041649,-500.0,0.00056438,120]
[340859930,1729953041658,-500.0,0.00056438,120]
[340859931,1729953041667,-500.0,0.00056438,120]
[340859932,1729953041678,-500.0,0.00056438,120]
[340859933,1729953041687,-798.12,0.00056438,120]
[340859934,1729953041696,-500.0,0.00056438,120]
[340859935,1729953041706,-6504.07028841,0.00056956,11]
[340859936,1729953041716,-5252.12487215,0.00056966,13]
[340859937,1729953041725,-10504.2497443,0.00056976,13]
[340859938,1729953041734,-445.67330211,0.00056986,120]
[340859939,1729953041743,-500.0,0.00056986,120]
[340859940,1729953041752,-500.0,0.00056986,120]
[340859941,1729953041761,-500.0,0.00056986,120]
[340859942,1729953041770,-516.96,0.00056986,120]
[340859943,1729953041779,-500.0,0.00056986,120]
[340859944,1729953041788,-841.6,0.00056986,120]
[340859945,1729953041797,-1382.79,0.00056986,120]
[340859946,1729953041808,-794.58,0.00056986,120]
[340859947,1729953041817,-500.0,0.00056986,21]
[340859948,1729953041826,-543.0,0.00056986,120]
[340859949,1729953041836,-1101.66,0.00056986,120]
[340859950,1729953041847,-500.0,0.00056986,120]
[340859951,1729953041857,-799.22,0.00056986,120]
[340859952,1729953041869,-2462.02,0.00056986,120]
[340859953,1729953041878,-1479.17,0.00056986,120]
[340859954,1729953041888,-257.28690093,0.00056986,120]
[340859955,1729953041896,-500.0,0.00056986,3]
[340859956,1729953041906,-500.0,0.00056986,120]
[340859957,1729953041915,-500.0,0.00056986,120]
[340859958,1729953041924,-500.0,0.00056986,120]
[340859959,1729953041933,-500.0,0.00056986,120]
[340859960,1729953041942,-500.0,0.00056986,120]
[340859961,1729953041951,-500.0,0.00056986,120]
[340859962,1729953041962,-500.0,0.00056986,120]
[340859963,1729953041971,-500.0,0.00056986,120]
[340859964,1729953041980,-798.12,0.00056986,120]
[340859965,1729953041989,-500.0,0.00056986,120]
[340859966,1729953041999,-688.54,0.00057083,2]
[340859967,1729953042009,-5252.12487215,0.00057514,13]
[340859968,1729953042018,-500.0,0.00057534,120]
[340859969,1729953042028,-300.11351477,0.00057534,120]
[340859970,1729953042037,-379.95088411,0.00057534,120]
[340859971,1729953042047,-516.96,0.00057534,120]
[340859972,1729953042057,-500.0,0.00057534,120]
[340859973,1729953042067,-841.6,0.00057534,120]
[340859974,1729953042076,-1382.79,0.00057534,120]
[340859975,1729953042085,-794.58,0.00057534,120]
[340859976,1729953042094,-500.0,0.00057534,21]
[340859977,1729953042103,-543.0,0.00057534,120]
[340859978,1729953042112,-1101.66,0.00057534,120]
[340859979,1729953042122,-500.0,0.00057534,120]
[340859980,1729953042134,-799.22,0.00057534,120]
[340859981,1729953042144,-2462.02,0.00057534,120]
[340859982,1729953042154,-1479.17,0.00057534,120]
[340859983,1729953042163,-500.0,0.00057534,3]
[340859984,1729953042173,-500.0,0.00057534,120]
[340859985,1729953042182,-167.30639833,0.00057534,120]
[340859986,1729953042191,-500.0,0.00057534,120]
[340859987,1729953042200,-500.0,0.00057534,120]
[340859988,1729953042210,-500.0,0.00057534,120]
[340859989,1729953042219,-560.58623445,0.00057534,120]
[340859990,1729953042228,-500.0,0.00057534,120]
[340859991,1729953042237,-500.0,0.00057534,120]
[340859992,1729953042247,-798.12,0.00057534,120]
[340859993,1729953042255,-500.0,0.00057534,120]
[340859994,1729953042264,-1500.0,0.000578,90]
[340859995,1729953042274,-151.0,0.00058,120]
[340859996,1729953042283,-276.349,0.00058053,114]
[340859997,1729953042292,-500.0,0.00058082,120]
[340859998,1729953042301,-516.96,0.00058082,120]
[340859999,1729953042311,-500.0,0.00058082,120]
[340860000,1729953042320,-841.6,0.00058082,120]
[340860001,1729953042329,-1382.79,0.00058082,120]
[340860002,1729953042338,-794.58,0.00058082,120]
[340860003,1729953042348,-500.0,0.00058082,21]
[340860004,1729953042357,-543.0,0.00058082,120]
[340860005,1729953042366,-1101.66,0.00058082,120]
[340860006,1729953042376,-500.0,0.00058082,120]
[340860007,1729953042386,-799.22,0.00058082,120]
[340860008,1729953042396,-2462.02,0.00058082,120]
[340860009,1729953042405,-1479.17,0.00058082,120]
[340860010,1729953042415,-500.0,0.00058082,3]
[340860011,1729953042424,-500.0,0.00058082,120]
[340860012,1729953042433,-500.0,0.00058082,120]
[340860013,1729953042442,-500.0,0.00058082,120]
[340860014,1729953042451,-500.0,0.00058082,120]
[340860015,1729953042462,-500.0,0.00058082,120]
[340860016,1729953042473,-332.87950496,0.00058082,120]
[340860017,1729953042482,-798.12,0.00058082,120]
[340860018,1729953042492,-500.0,0.00058082,120]
[340860019,1729953042501,-152.0,0.00058242,5]
[340860020,1729953042510,-2520.47261892,0.0005858,2]
[340860021,1729953042519,-500.0,0.0005863,120]
[340860022,1729953042529,-516.96,0.0005863,120]
[340860023,1729953042538,-500.0,0.0005863,120]
[340860024,1729953042548,-841.6,0.0005863,120]
[340860025,1729953042558,-1382.79,0.0005863,120]
[340860026,1729953042567,-794.58,0.0005863,120]
[340860027,1729953042576,-500.0,0.0005863,21]
[340860028,1729953042586,-543.0,0.0005863,120]
[340860029,1729953042595,-1101.66,0.0005863,120]
[340860030,1729953042604,-500.0,0.0005863,120]
[340860031,1729953042613,-799.22,0.0005863,120]
[340860032,1729953042623,-2462.02,0.0005863,120]
[340860033,1729953042631,-1479.17,0.0005863,120]
[340860034,1729953042641,-500.0,0.0005863,3]
[340860035,1729953042650,-500.0,0.0005863,120]
[340860036,1729953042659,-500.0,0.0005863,120]
[340860037,1729953042668,-500.0,0.0005863,120]
[340860038,1729953042677,-500.0,0.0005863,120]
[340860039,1729953042686,-500.0,0.0005863,120]
[340860040,1729953042695,-798.12,0.0005863,120]
[340860041,1729953042704,-500.0,0.0005863,120]
[340860042,1729953042715,-500.0,0.00058726,120]
[340860043,1729953042724,-500.0,0.00058726,120]
[340860044,1729953042733,-500.0,0.00058726,120]
[340860045,1729953042742,-500.0,0.00058726,120]
[340860046,1729953042751,-500.0,0.00058726,120]
[340860047,1729953042760,-500.0,0.00058726,120]
[340860048,1729953042769,-500.0,0.00058726,120]
[340860049,1729953042778,-500.0,0.00058726,120]
[340860050,1729953042788,-500.0,0.00058726,120]
[340860051,1729953042797,-500.0,0.00058726,120]
[340860052,1729953042807,-500.0,0.00058726,120]
[340860053,1729953042817,-500.0,0.00058726,120]
[340860054,1729953042826,-500.0,0.00058726,120]
[340860055,1729953042835,-500.0,0.00058726,120]
[340860056,1729953042844,-500.0,0.00058726,120]
[340860057,1729953042853,-500.0,0.00058726,120]